fUST/lending_fUST_20250115
["ID","MTS","AMOUNT","RATE_DAILY","PERIOD"]
[348983544,1736915450751,-612.99563048,0.00019726,3]
[348983545,1736915450761,-562.51,0.00019726,3]
[348983546,1736915450771,-11554.32,0.00019726,3]
[348983547,1736915450780,-500.0,0.00019726,3]
[348983548,1736915450790,-500.0,0.00019726,3]
[348983549,1736915450800,-767.01,0.00019726,3]
[348983550,1736915450810,-1142.41,0.00019726,3]
[348983551,1736915450821,-151.0,0.00019726,2]
[348983552,1736915450831,-500.0,0.00019726,3]
[348983553,1736915450841,-513.27,0.00019726,3]
[348983554,1736915450851,-500.0,0.00019726,3]
[348983555,1736915450860,-566.76,0.00019726,3]
[348983556,1736915450870,-615.86,0.00019726,3]
[348983557,1736915450880,-500.0,0.00019726,3]
[348983558,1736915450891,-151.0,0.00019726,2]
[348983559,1736915450901,-500.0,0.00019726,3]
[348983560,1736915450911,-530.01,0.00019726,3]
[348983561,1736915450920,-500.0,0.00019726,3]
[348983562,1736915450930,-1238.72,0.00019726,3]
[348983563,1736915450941,-500.0,0.00019726,3]
[348983564,1736915450951,-500.0,0.00019726,3]
[348983565,1736915450960,-609.03,0.00019726,3]
[348983566,1736915450970,-500.0,0.00019726,3]
[348983567,1736915450980,-603.83,0.00019726,3]
[348983568,1736915450989,-151.0,0.00019726,2]
[348983569,1736915450999,-151.0,0.00019726,2]
[348983570,1736915451009,-500.0,0.00019726,3]
[348983571,1736915451019,-4328.01,0.00019726,3]
[348983572,1736915451028,-500.0,0.00019726,3]
[348983573,1736915451038,-500.0,0.00019726,3]
[348983574,1736915451046,-737.48,0.00019726,3]
[348983575,1736915451055,-500.0,0.00019726,3]
[348983576,1736915451065,-3744.22,0.00019726,3]
[348983577,1736915451074,-500.0,0.00019726,3]
[348983578,1736915451084,-2933.53,0.00019726,2]
[348983579,1736915451094,-500.0,0.00019726,3]
[348983580,1736915451104,-532.9,0.00019726,3]
[348983581,1736915451113,-3520.74,0.00019726,3]
[348983582,1736915451122,-2022.43,0.00019726,3]
[348983583,1736915451131,-500.0,0.00019726,3]
[348983584,1736915451142,-818.27,0.00019726,3]
[348983585,1736915451152,-589.85,0.00019726,3]
[348983586,1736915451162,-159.02967885,0.00019726,3]
[348983587,1736915451172,-500.0,0.00019726,3]
[348983588,1736915451181,-519.13863435,0.00019726,3]
[348983589,1736915451191,-500.0,0.00019726,3]
[348983590,1736915451201,-1441.15,0.00019726,3]
[348983591,1736915451211,-707.19,0.00019726,3]
[348983592,1736915451220,-577.75747966,0.00019726,3]
[348983593,1736915451230,-1057.17,0.00019726,3]
[348983594,1736915451239,-202.90199568,0.00019782,2]
[348983595,1736915451249,-154.717612,0.00019863,2]
[348983596,1736915451258,-500.0,0.00019863,3]
[348983597,1736915451267,-512.6305971,0.00019863,3]
[348983598,1736915451276,-500.0,0.00019863,3]
[348983599,1736915451286,-1770.98,0.00019863,3]
[348983600,1736915451296,-554.95875913,0.00019863,3]
[348983601,1736915451306,-500.0,0.00019863,3]
[348983602,1736915451315,-622.37,0.00019863,3]
[348983603,1736915451325,-304.87273084,0.00019863,3]
[348983604,1736915451334,-500.0,0.00019863,3]
[348983605,1736915451343,-242.018253,0.00019863,2]
[348983606,1736915451353,-242.018253,0.00019863,2]
[348983607,1736915451362,-500.0,0.00019863,3]
[348983608,1736915451372,-500.0,0.00019863,3]
[348983609,1736915451382,-500.0,0.00019863,3]
[348983610,1736915451392,-785.44,0.00019863,3]
[348983611,1736915451402,-500.0,0.00019863,3]
[348983612,1736915451411,-247.47360123,0.00019863,3]
[348983613,1736915451422,-500.0,0.00019863,3]
[348983614,1736915451434,-607.61,0.00019863,3]
[348983615,1736915451443,-500.0,0.00019863,2]
[348983616,1736915451453,-500.0,0.00019863,3]
[348983617,1736915451462,-500.0,0.00019863,3]
[348983618,1736915451475,-415.84966573,0.00019863,3]
[348983619,1736915451484,-1073.85,0.00019863,3]
[348983620,1736915451494,-623.66,0.00019863,3]
[348983621,1736915451505,-500.0,0.00019863,3]
[348983622,1736915451514,-500.0,0.00019863,3]
[348983623,1736915451524,-562.51,0.00019863,3]
[348983624,1736915451534,-11554.32,0.00019863,3]
[348983625,1736915451543,-500.0,0.00019863,3]
[348983626,1736915451554,-500.0,0.00019863,3]
[348983627,1736915451564,-767.01,0.00019863,3]
[348983628,1736915451573,-1142.41,0.00019863,3]
[348983629,1736915451583,-500.0,0.00019863,3]
[348983630,1736915451593,-513.27,0.00019863,3]
[348983631,1736915451603,-500.0,0.00019863,3]
[348983632,1736915451613,-566.76,0.00019863,3]
[348983633,1736915451622,-615.86,0.00019863,3]
[348983634,1736915451632,-265.00073903,0.00019863,3]
[348983635,1736915451643,-500.0,0.00019863,3]
[348983636,1736915451652,-530.01,0.00019863,3]
[348983637,1736915451661,-609.85036582,0.00019863,3]
[348983638,1736915451671,-1238.72,0.00019863,3]
[348983639,1736915451681,-500.0,0.00019863,3]
[348983640,1736915451691,-500.0,0.00019863,3]
[348983641,1736915451700,-609.03,0.00019863,3]
[348983642,1736915451709,-500.0,0.00019863,3]
[348983643,1736915451719,-603.83,0.00019863,3]
[348983644,1736915451729,-500.0,0.00019863,3]
[348983645,1736915451739,-500.0,0.00019863,3]
[348983646,1736915451748,-4328.01,0.00019863,3]
[348983647,1736915451758,-500.0,0.00019863,3]
[348983648,1736915451768,-737.48,0.00019863,3]
[348983649,1736915451778,-500.0,0.00019863,3]
[348983650,1736915451789,-3744.22,0.00019863,3]
[348983651,1736915451798,-500.0,0.00019863,3]
[348983652,1736915451807,-686.97856386,0.00019863,2]
[348983653,1736915452117,-1069.66884816,0.00019863,2]
[348983654,1736915452129,-1176.88258798,0.00019863,2]
[348983655,1736915452140,-327.21386933,0.00019863,3]
[348983656,1736915452152,-172.78613067,0.00019863,3]
[348983657,1736915452162,-532.9,0.00019863,3]
[348983658,1736915452172,-3520.74,0.00019863,3]
[348983659,1736915452182,-2022.43,0.00019863,3]
[348983660,1736915452192,-500.0,0.00019863,3]
[348983661,1736915452202,-818.27,0.00019863,3]
[348983662,1736915452211,-589.85,0.00019863,3]
[348983663,1736915452221,-500.0,0.00019863,3]
[348983664,1736915452232,-500.0,0.00019863,3]
[348983665,1736915452242,-707.19,0.00019863,3]
[348983666,1736915452252,-1441.15,0.00019863,3]
[348983667,1736915452262,-1057.17,0.00019863,3]
[348983668,1736915452271,-1002.26522833,0.00019921,2]
[348983669,1736915452281,-1005.97771661,0.00019921,2]
[348983670,1736915452291,-162.19,0.0002,7]
[348983671,1736915452301,-162.19,0.0002,7]
[348983672,1736915452311,-180.0,0.0002,2]
[348983673,1736915452322,-180.0,0.0002,5]
[348983674,1736915452331,-2108.0,0.0002,2]
[348983675,1736915452342,-201.639646,0.0002,2]
[348983676,1736915452353,-154.47,0.0002,2]
[348983677,1736915452363,-7681.0,0.0002,3]
[348983678,1736915452374,-3839.0,0.0002,3]
[348983679,1736915452383,-3839.0,0.0002,3]
[348983680,1736915452395,-3839.0,0.0002,3]
[348983681,1736915452404,-3839.0,0.0002,3]
[348983682,1736915452414,-2715.0,0.0002,3]
[348983683,1736915452427,-2711.0,0.0002,3]
[348983684,1736915452437,-2711.0,0.0002,3]
[348983685,1736915452446,-2580.92393699,0.0002,3]
[348983686,1736915452651,-1005.6745737,0.00017881,2]
[348983687,1736915452787,-3698.89027762,0.00017881,2]
[348983688,1736915452797,-5000.0,0.00018986,2]
[348983689,1736915452806,-502.8181918,0.00019178,2]
[348983690,1736915452816,-791.78585419,0.00019178,2]
[348983691,1736915452832,-1314.08414581,0.00019178,2]
[348983692,1736915452842,-2105.87,0.00019178,2]
[348983693,1736915452851,-28.62802519,0.00019178,2]
[348983694,1736915452863,-471.37197481,0.00019178,2]
[348983695,1736915452872,-1267.89418394,0.00019178,2]
[348983696,1736915452980,-837.97581606,0.00019178,2]
[348983697,1736915452989,-2105.87,0.00019178,2]
[348983698,1736915452999,-2105.87,0.00019178,2]
[348983699,1736915453009,-500.0,0.00019315,3]
[348983700,1736915453019,-151.0,0.00019315,2]
[348983701,1736915453030,-500.0,0.00019452,3]
[348983702,1736915453040,-500.0,0.00019452,3]
[348983703,1736915453049,-500.0,0.00019589,3]
[348983704,1736915453059,-151.0,0.00019589,2]
[348983705,1736915453069,-510.87725996,0.00019589,3]
[348983706,1736915453078,-500.0,0.00019726,3]
[348983707,1736915453088,-500.0,0.00019863,3]
[348983708,1736915453097,-151.0,0.00019863,2]
[348983709,1736915453107,-130.07606301,0.0002,3]
[348983710,1736915453117,-2711.0,0.0002,3]
[348983711,1736915453126,-2711.0,0.0002,3]
[348983712,1736915453136,-279.12460117,0.0002,3]
[348983713,1736915453149,-220.87539883,0.0002,3]
[348983714,1736915453158,-151.0,0.0002,2]
[348983715,1736915453168,-154.412583,0.0002,2]
[348983716,1736915453177,-323.03933461,0.0002,3]
[348983717,1736915453189,-176.96066539,0.0002,3]
[348983718,1736915453198,-1770.98,0.0002,3]
[348983719,1736915453207,-500.0,0.0002,3]
[348983720,1736915453216,-622.37,0.0002,3]
[348983721,1736915453226,-151.0,0.0002,2]
[348983722,1736915453235,-542.11631069,0.0002,3]
[348983723,1736915453245,-500.0,0.0002,3]
[348983724,1736915453254,-198.64088751,0.0002,3]
[348983725,1736915453265,-500.0,0.0002,3]
[348983726,1736915453275,-151.0,0.0002,2]
[348983727,1736915453285,-785.44,0.0002,3]
[348983728,1736915453296,-151.0,0.0002,2]
[348983729,1736915453307,-169.0875014,0.0002,3]
[348983730,1736915453319,-330.9124986,0.0002,3]
[348983731,1736915453329,-151.0,0.0002,2]
[348983732,1736915453340,-500.0,0.0002,3]
[348983733,1736915453349,-607.61,0.0002,3]
[348983734,1736915453359,-500.0,0.0002,2]
[348983735,1736915453369,-500.0,0.0002,3]
[348983736,1736915453378,-500.0,0.0002,3]
[348983737,1736915453387,-161.853074,0.0002,2]
[348983738,1736915453398,-161.853074,0.0002,2]
[348983739,1736915453407,-151.0,0.0002,2]
[348983740,1736915453417,-623.66,0.0002,3]
[348983741,1736915453430,-500.0,0.0002,3]
[348983742,1736915453439,-151.0,0.0002,2]
[348983743,1736915453449,-500.0,0.0002,3]
[348983744,1736915453459,-562.51,0.0002,3]
[348983745,1736915453469,-11554.32,0.0002,3]
[348983746,1736915453479,-500.0,0.0002,3]
[348983747,1736915453490,-500.0,0.0002,3]
[348983748,1736915453501,-767.01,0.0002,3]
[348983749,1736915453510,-1142.41,0.0002,3]
[348983750,1736915453520,-151.0,0.0002,2]
[348983751,1736915453530,-500.0,0.0002,3]
[348983752,1736915453540,-513.27,0.0002,3]
[348983753,1736915453551,-500.0,0.0002,3]
[348983754,1736915453561,-201.7781206,0.0002,3]
[348983755,1736915453732,-500.0,0.00019178,2]
[348983756,1736915454985,-186.55259591,0.00019178,2]
[348983757,1736915454997,-313.44740409,0.00019178,2]
[348983758,1736915455007,-2105.87,0.00019178,2]
[348983759,1736915455016,-500.0,0.00019178,2]
[348983760,1736915455026,-500.0,0.00019315,3]
[348983761,1736915455036,-237.77054039,0.00019452,3]
[348983762,1736915455048,-262.22945961,0.00019452,3]
[348983763,1736915455059,-500.0,0.00019589,3]
[348983764,1736915455070,-12.18626119,0.00019726,3]
[348983766,1736915820329,5000.0,0.00015054,2]
[348983767,1736915829252,3749.50674291,0.00015054,2]
[348983768,1736915829285,1250.49325709,0.00015054,2]
[348983769,1736915837874,2282.21208878,0.00015054,2]
[348983770,1736915845994,1594.97439023,0.00015054,2]
[348983771,1736916266763,2806.93901077,0.00015054,2]
[348983772,1736916355014,379.764613,0.00013973,2]
[348983773,1736916378091,1685.61664013,0.00015054,2]
[348983774,1736916378126,3314.38335987,0.00015054,2]
[348983775,1736916386524,283.64295972,0.00015054,2]
[348983776,1736916394606,1404.01484551,0.00015054,2]
[348983777,1736916406109,-2070.72626103,0.000151,2]
[348983778,1736916406129,-200.54801791,0.000151,2]
[348983779,1736916406149,-198.05861849,0.00016437,2]
[348983780,1736916406169,-559.96777466,0.00016537,2]
[348983781,1736916406189,-701.233178,0.00017258,2]
[348983782,1736916406209,-462.02804514,0.00017737,2]
[348983783,1736916406231,-300.0,0.00017831,2]
[348983784,1736916406251,-7403.96441777,0.00017831,2]
[348983788,1736916531835,6727.1187834,0.00025,120]
[348983860,1736916632352,-1219.27763647,0.00017377,2]
[348983862,1736916632362,-483.53014612,0.00017552,2]
[348983864,1736916632371,-500.0,0.00017825,2]
[348983865,1736916632380,-375.49627031,0.00017825,2]
[348983868,1736916632390,-300.0,0.00017826,2]
[348983869,1736916632399,-18656.26614279,0.00017826,2]
[348983872,1736916632411,-164541.73385721,0.00017826,2]
[348983874,1736916632420,-638.61631735,0.00017828,2]
[348983876,1736916632431,-638.61631735,0.00017828,2]
[348983877,1736916632440,-638.61631735,0.00017828,2]
[348983879,1736916632449,-638.61631735,0.00017828,2]
[348983881,1736916632459,-638.61631735,0.00017828,2]
[348983884,1736916632469,-638.61631735,0.00017828,2]
[348983886,1736916632479,-638.61631735,0.00017828,2]
[348983888,1736916632489,-638.61631735,0.00017828,2]
[348983890,1736916632498,-638.61631735,0.00017828,2]
[348983892,1736916632508,-638.61631735,0.00017828,2]
[348983894,1736916632518,-638.61631735,0.00017828,2]
[348983896,1736916632528,-638.61631735,0.00017828,2]
[348983898,1736916632538,-638.61631735,0.00017828,2]
[348983900,1736916632549,-638.61631735,0.00017828,2]
[348983902,1736916632558,-638.61631735,0.00017828,2]
[348983904,1736916632567,-638.61631735,0.00017828,2]
[348983907,1736916632577,-638.61631735,0.00017828,2]
[348983910,1736916632587,-638.61631735,0.00017828,2]
[348983913,1736916632596,-638.61631735,0.00017828,2]
[348983915,1736916632606,-638.61631735,0.00017828,2]
[348983917,1736916632617,-638.61631735,0.00017828,2]
[348983919,1736916632631,-638.61631735,0.00017828,2]
[348983921,1736916632642,-638.61631735,0.00017828,2]
[348983923,1736916632652,-638.61631735,0.00017828,2]
[348983925,1736916632661,-638.61631735,0.00017828,2]
[348983927,1736916632671,-638.61631735,0.00017828,2]
[348983929,1736916632680,-638.61631735,0.00017828,2]
[348983931,1736916632689,-638.61631735,0.00017828,2]
[348983933,1736916632699,-638.61631735,0.00017828,2]
[348983935,1736916632709,-638.61631735,0.00017828,2]
[348983937,1736916632720,-638.61631735,0.00017828,2]
[348983939,1736916632730,-638.61631735,0.00017828,2]
[348983941,1736916632740,-638.61631735,0.00017828,2]
[348983943,1736916632750,-638.61631735,0.00017828,2]
[348983945,1736916632759,-638.61631735,0.00017828,2]
[348983947,1736916632769,-638.61631735,0.00017828,2]
[348983949,1736916632778,-638.61631735,0.00017828,2]
[348983951,1736916632788,-638.61631735,0.00017828,2]
[348983953,1736916632798,-638.61631735,0.00017828,2]
[348983955,1736916632807,-638.61631735,0.00017828,2]
[348983957,1736916632816,-638.61631735,0.00017828,2]
[348983959,1736916632826,-638.61631735,0.00017828,2]
[348983961,1736916632835,-638.61631735,0.00017828,2]
[348983963,1736916632845,-638.61631735,0.00017828,2]
[348983965,1736916632854,-638.61631735,0.00017828,2]
[348983967,1736916632864,-638.61631735,0.00017828,2]
[348983969,1736916632873,-638.61631735,0.00017828,2]
[348983971,1736916632883,-638.61631735,0.00017828,2]
[348983973,1736916632892,-638.61631735,0.00017828,2]
[348983975,1736916632902,-638.61631735,0.00017828,2]
[348983977,1736916632911,-638.61631735,0.00017828,2]
[348983979,1736916632921,-638.61631735,0.00017828,2]
[348983982,1736916632931,-638.61631735,0.00017828,2]
[348983984,1736916632940,-638.61631735,0.00017828,2]
[348983985,1736916632953,-638.61631735,0.00017828,2]
[348983988,1736916632964,-638.61631735,0.00017828,2]
[348983989,1736916632974,-638.61631735,0.00017828,2]
[348983991,1736916632983,-628.63793738,0.00017828,2]
[348983992,1736916632994,-628.63793738,0.00017828,2]
[348983993,1736916633004,-628.63793738,0.00017828,2]
[348983994,1736916633014,-628.63793738,0.00017828,2]
[348983995,1736916633023,-628.63793738,0.00017828,2]
[348983996,1736916633034,-628.63793738,0.00017828,2]
[348983997,1736916633043,-628.63793738,0.00017828,2]
[348983998,1736916633053,-628.63793738,0.00017828,2]
[348983999,1736916633063,-628.63793738,0.00017828,2]
[348984000,1736916633073,-628.63793738,0.00017828,2]
[348984001,1736916633083,-628.63793738,0.00017828,2]
[348984002,1736916633093,-628.63793738,0.00017828,2]
[348984003,1736916633103,-628.63793738,0.00017828,2]
[348984004,1736916633112,-628.63793738,0.00017828,2]
[348984005,1736916633122,-628.63793738,0.00017828,2]
[348984006,1736916633132,-628.63793738,0.00017828,2]
[348984007,1736916633141,-628.63793738,0.00017828,2]
[348984008,1736916633151,-628.63793738,0.00017828,2]
[348984010,1736916633160,-628.63793738,0.00017828,2]
[348984012,1736916633170,-628.63793738,0.00017828,2]
[348984014,1736916633181,-628.63793738,0.00017828,2]
[348984016,1736916633191,-628.63793738,0.00017828,2]
[348984018,1736916633200,-628.63793738,0.00017828,2]
[348984021,1736916633211,-628.63793738,0.00017828,2]
[348984023,1736916633221,-628.63793738,0.00017828,2]
[348984025,1736916633231,-628.63793738,0.00017828,2]
[348984026,1736916633241,-628.63793738,0.00017828,2]
[348984029,1736916633251,-628.63793738,0.00017828,2]
[348984031,1736916633260,-628.63793738,0.00017828,2]
[348984033,1736916633269,-628.63793738,0.00017828,2]
[348984035,1736916633279,-628.63793738,0.00017828,2]
[348984037,1736916633289,-628.63793738,0.00017828,2]
[348984039,1736916633299,-500.0,0.0001783,2]
[348984041,1736916633308,-500.0,0.0001783,2]
[348984043,1736916633318,-24900.0,0.00017837,2]
[348984045,1736916633328,-462.02804513,0.00018072,2]
[348984047,1736916633338,-462.02804513,0.00018408,2]
[348984048,1736916633347,-152.0,0.00018493,2]
[348984050,1736916633357,-462.02804513,0.00018743,2]
[348984052,1736916633367,-154.52,0.000189,2]
[348984054,1736916633377,-192.0,0.00018909,2]
[348984056,1736916633387,-500.0,0.00018996,2]
[348984058,1736916633396,-500.0,0.00018996,2]
[348984060,1736916633406,-500.0,0.00018996,2]
[348984063,1736916633416,-259.74930406,0.00018996,2]
[348984065,1736916633425,-500.0,0.00018996,2]
[348984067,1736916633435,-500.0,0.00018996,2]
[348984069,1736916633446,-500.0,0.00018996,2]
[348984071,1736916633456,-500.0,0.00018996,2]
[348984073,1736916633465,-500.0,0.00018996,2]
[348984075,1736916633474,-500.0,0.00018996,2]
[348984077,1736916633484,-500.0,0.00018996,2]
[348984079,1736916633493,-500.0,0.00018996,2]
[348984081,1736916633503,-500.0,0.00018996,2]
[348984083,1736916633512,-300.0,0.00018996,2]
[348984085,1736916633521,-500.0,0.00018996,2]
[348984087,1736916633532,-20041.92941926,0.00019,3]
[348984089,1736916633541,-34416.42071719,0.00019,4]
[348984091,1736916633550,-774.322,0.00019,2]
[348984093,1736916633560,-462.02804513,0.00019078,2]
[348984095,1736916633569,-850.35716639,0.00019131,2]
[348984097,1736916633579,-349.3418037,0.00019173,2]
[348984099,1736916633589,-249.20077945,0.00019173,2]
[348984101,1736916633599,-500.0,0.00019173,2]
[348984103,1736916633608,-500.8169685,0.00019173,2]
[348984105,1736916633618,-501.98896243,0.00019173,2]
[348984107,1736916633627,-500.0,0.00019173,2]
[348984109,1736916633637,-175.18128477,0.00019173,2]
[348984111,1736916633647,-502.54391737,0.00019177,2]
[348984113,1736916633657,-506.70146959,0.00019178,2]
[348984115,1736916633667,-560.47764597,0.00019178,2]
[348984117,1736916633676,-494.58898614,0.00019178,2]
[348984119,1736916633686,-503.54888721,0.00019178,2]
[348984121,1736916633697,-502.34240896,0.00019178,2]
[348984123,1736916633707,-500.0,0.00019178,2]
[348984125,1736916633716,-500.0,0.00019178,2]
[348984127,1736916633726,-150.92303505,0.00019178,2]
[348984129,1736916633735,-501.60552393,0.00019178,2]
[348984131,1736916633743,-506.65245608,0.00019178,2]
[348984133,1736916633753,-500.0,0.00019178,2]
[348984135,1736916633762,-502.35972386,0.00019178,2]
[348984150,1736916633899,-501.49086779,0.00019178,2]
[348984152,1736916633910,-500.0,0.00019178,2]
[348984154,1736916633920,-500.0,0.00019178,2]
[348984156,1736916633930,-500.0,0.00019178,2]
[348984158,1736916633941,-500.0,0.00019178,2]
[348984160,1736916633950,-500.0,0.00019178,2]
[348984162,1736916633964,-505.36497825,0.00019178,2]
[348984164,1736916633974,-500.0,0.00019178,2]
[348984166,1736916633984,-500.0,0.00019178,2]
[348984168,1736916633995,-512.43848443,0.00019178,2]
[348984170,1736916634005,-500.0,0.00019178,2]
[348984172,1736916634015,-500.0,0.00019178,2]
[348984174,1736916634025,-504.62332342,0.00019178,2]
[348984176,1736916634036,-500.0,0.00019178,2]
[348984178,1736916634046,-382.63270114,0.00019178,2]
[348984180,1736916634056,-403.688225,0.00019178,2]
[348984183,1736916634066,-500.0,0.00019178,2]
[348984185,1736916634076,-500.0,0.00019178,2]
[348984187,1736916634086,-506.70173155,0.00019178,2]
[348984189,1736916634095,-500.0,0.00019178,2]
[348984191,1736916634105,-500.0,0.00019178,2]
[348984193,1736916634115,-500.0,0.00019178,2]
[348984195,1736916634125,-188.0,0.00019178,2]
[348984197,1736916634134,-500.0,0.00019178,2]
[348984199,1736916634144,-500.0,0.00019178,2]
[348984201,1736916634154,-742.49,0.00019178,2]
[348984203,1736916634163,-509.57619342,0.00019178,2]
[348984205,1736916634173,-500.0,0.00019178,2]
[348984207,1736916634182,-500.0,0.00019178,2]
[348984209,1736916634192,-500.0,0.00019178,2]
[348984211,1736916634202,-151.0,0.00019178,2]
[348984213,1736916634212,-500.0,0.00019178,2]
[348984214,1736916634222,-500.0,0.00019178,2]
[348984215,1736916634231,-500.0,0.00019178,2]
[348984216,1736916634241,-500.0,0.00019178,2]
[348984217,1736916634250,-500.0,0.00019178,2]
[348984219,1736916634260,-500.0,0.00019178,2]
[348984221,1736916634269,-500.0,0.00019178,2]
[348984222,1736916634279,-500.0,0.00019178,2]
[348984224,1736916634288,-500.0,0.00019178,2]
[348984226,1736916634298,-500.0,0.00019178,2]
[348984228,1736916634307,-500.0,0.00019178,2]
[348984229,1736916634317,-631.69,0.00019178,2]
[348984230,1736916634326,-500.0,0.00019178,2]
[348984231,1736916634336,-533.51168514,0.00019178,2]
[348984232,1736916634346,-500.0,0.00019178,2]
[348984233,1736916634355,-505.1489807,0.00019178,2]
[348984234,1736916634365,-500.0,0.00019178,2]
[348984235,1736916634375,-550.31,0.00019178,2]
[348984236,1736916634384,-500.0,0.00019178,2]
[348984237,1736916634394,-500.0,0.00019178,2]
[348984238,1736916634404,-500.0,0.00019178,2]
[348984239,1736916634414,-500.0,0.00019178,2]
[348984240,1736916634423,-500.0,0.00019178,2]
[348984241,1736916634433,-500.0,0.00019178,2]
[348984242,1736916634444,-500.0,0.00019178,2]
[348984243,1736916634454,-500.0,0.00019178,2]
[348984244,1736916634463,-500.0,0.00019178,2]
[348984245,1736916634473,-500.0,0.00019178,2]
[348984246,1736916634482,-500.0,0.00019178,2]
[348984247,1736916634491,-500.0,0.00019178,2]
[348984248,1736916634501,-500.0,0.00019178,2]
[348984249,1736916634511,-500.0,0.00019178,2]
[348984250,1736916634520,-515.80745849,0.00019178,2]
[348984251,1736916634530,-500.0,0.00019178,2]
[348984252,1736916634539,-500.0,0.00019178,2]
[348984253,1736916634549,-500.0,0.00019178,2]
[348984254,1736916634559,-500.0,0.00019178,2]
[348984255,1736916634569,-151.0,0.00019178,2]
[348984256,1736916634579,-500.0,0.00019178,2]
[348984257,1736916634588,-500.0,0.00019178,2]
[348984258,1736916634597,-500.0,0.00019178,2]
[348984259,1736916634607,-500.0,0.00019178,2]
[348984260,1736916634617,-500.0,0.00019178,2]
[348984261,1736916634627,-500.0,0.00019178,2]
[348984262,1736916634636,-500.0,0.00019178,2]
[348984263,1736916634646,-691.61,0.00019178,2]
[348984264,1736916634655,-500.0,0.00019178,2]
[348984265,1736916634664,-500.0,0.00019178,2]
[348984266,1736916634674,-500.0,0.00019178,2]
[348984267,1736916634683,-500.0,0.00019178,2]
[348984268,1736916634694,-500.0,0.00019178,2]
[348984269,1736916634703,-500.0,0.00019178,2]
[348984270,1736916634713,-500.0,0.00019178,2]
[348984271,1736916634722,-500.0,0.00019178,2]
[348984272,1736916634731,-500.0,0.00019178,2]
[348984273,1736916634741,-500.0,0.00019178,2]
[348984274,1736916634751,-500.0,0.00019178,2]
[348984275,1736916634761,-500.0,0.00019178,2]
[348984276,1736916634772,-152.425675,0.00019178,2]
[348984277,1736916634782,-474.469349,0.00019178,2]
[348984278,1736916634792,-474.469349,0.00019178,2]
[348984279,1736916634803,-500.0,0.00019178,2]
[348984280,1736916634813,-500.0,0.00019178,2]
[348984281,1736916634823,-500.0,0.00019178,2]
[348984282,1736916634833,-517.59396766,0.00019178,2]
[348984283,1736916634843,-205.204769,0.00019178,2]
[348984284,1736916634852,-205.204769,0.00019178,2]
[348984285,1736916634862,-500.0,0.00019178,2]
[348984286,1736916634871,-500.0,0.00019178,2]
[348984287,1736916634881,-500.0,0.00019178,2]
[348984288,1736916634890,-151.0,0.00019178,2]
[348984289,1736916634900,-500.0,0.00019178,2]
[348984290,1736916634910,-500.0,0.00019178,2]
[348984291,1736916634920,-500.0,0.00019178,2]
[348984292,1736916634930,-500.0,0.00019178,2]
[348984293,1736916634940,-500.0,0.00019178,2]
[348984294,1736916634950,-413.61453277,0.00019178,2]
[348984295,1736916634965,-500.0,0.00019178,2]
[348984296,1736916634975,-500.0,0.00019178,2]
[348984297,1736916634984,-500.0,0.00019178,2]
[348984298,1736916634995,-500.0,0.00019178,2]
[348984299,1736916635004,-500.0,0.00019178,2]
[348984300,1736916635014,-500.0,0.00019178,2]